Cogmind - Beta 14 @@@ ROGUE MODE // 2025.04.29 @ 11:07:42 Player: yeast Result: Destroyed by Y-45 Defender with Beam Rifle Performance ------------- Evolutions (0) 0 Regions Visited (2) 400 Robots Destroyed (16) 80 Value Destroyed (285) 285 Prototype IDs (0) 0 Alien Tech Used (0) 0 Bonus (0) 0 TOTAL SCORE: 765 Bonus ------- None Cogmind --------- Core Integrity 0/250 Matter 280/300 Energy 100/100 System Corruption 1% Temperature Cool (9) Movement Core (50) Location -10/Mines Parts ------- > --- POWER (1) -------- (None) > --- PROPULSION (2) --- (None) > --- UTILITY (2) ------ Weapon Shielding > --- WEAPON (2) ------- (None) > --- INVENTORY (5) ---- Experimental Sensor Array Terrain Scanner Peak State ------------ > --- POWER ------------ Ion Engine > --- PROPULSION ------- Wheel Compact Wheel > --- UTILITY ---------- Visual Processing Unit Sensor Array > --- WEAPON ----------- Spread Laser Light EM Pulse Cannon > --- INVENTORY -------- Terrain Scanner ECM Suite Weapon Shielding [Rating: 10] Favorites ----------- Power Ion Engine Engine Ion Engine Power Core Light Nuclear Core Propulsion Wheel Wheel Wheel Flight Unit Flight Unit Utility Sensor Array Device Sensor Array Storage Huge Storage Unit Processor Visual Processing Unit Protection Weapon Shielding Weapon Spread Laser Energy Gun Spread Laser Energy Cannon Light EM Pulse Cannon Ballistic Gun Assault Rifle Special Weapon Welding Torch Build | -11 -10 -10 ------- Run | Yrd Mat Min Slots Evolved . | . . . Power . | . . . Propulsion . | . . . Utility . | . . . Weapon . | . . . Parts Attached 27 | 5 13 9 Power 2 | 1 . 1 Engine 1 | 1 . . Core 1 | . . 1 Reactor . | . . . Propulsion 5 | 2 1 2 Treads . | . . . Leg . | . . . Wheel 4 | 2 . 2 Hover . | . . . Flight 1 | . 1 . Utility 12 | . 8 4 Device 7 | . 5 2 Storage 2 | . 2 . Processor 1 | . 1 . Hackware . | . . . Protection 2 | . . 2 Artifact . | . . . Weapon 8 | 2 4 2 Energy Gun 4 | 1 2 1 Energy Cannon 2 | . 1 1 Ballistic Gun 1 | 1 . . Ballistic Cannon . | . . . Launcher . | . . . Special Weapon 1 | . 1 . Impact Weapon . | . . . Slashing Weapon . | . . . Piercing Weapon . | . . . Special Melee Weapon . | . . . Unidentified Prototypes . | . . . Corrupted Parts 1 | . . 1 System Corruption 1 | . . 1 Parts Lost 8 | . 1 7 Power 2 | . . 2 Propulsion 3 | . 1 2 Utility 1 | . . 1 Weapon 2 | . . 2 Highest Loss Streak 4 | . 1 4 To Critical Strikes . | . . . Average Slot Usage (%) 73 | . 75 70 Engine 10 | . 14 4 Wheel 10 | . 4 22 Flight 1 | . . 2 Device 18 | . 16 22 Storage 6 | . 10 . Processor 2 | . . 4 Energy Gun 12 | . 12 12 Energy Cannon 6 | . 10 . Ballistic Gun 2 | . 3 . Special Weapon 1 | . 1 . Peak Build Rating 10 | 4 9 10 Average Rating 6 | 1 7 6 On Entrance 3 | . 4 7 Naked Turns . | . . . Heaviest Build 94 | 8 94 9 Greatest Support 20 | 20 10 16 Greatest Overweight (x) 31 | . 31 2 Average Overweight (x) 3 | . 9 . Largest Inventory Capacity 25 | 5 25 5 Average Capacity 13 | 5 19 5 Most Carried 7 | 5 7 4 Average Carried 3 | 2 4 2 Final Capacity 5 | 5 5 5 Final Carried 3 | . 3 2 Class Distribution -------------------- 66% | Mutant 33% | Scavenger-Mutant Dominant Class ---------------- Mutant | -10/Materials Scavenger-Mutant | -10/Mines Resources | -11 -10 -10 ----------- Run | Yrd Mat Min Matter Collected 410 | 250 29 131 Remotely . | . . . Salvage Created 413 | 53 160 200 Parts 36 | 5 22 9 Haulers Intercepted . | . . . Recyclers Shooed 3 | . 1 2 Parts Field Recycled . | . . . Retrieved Matter . | . . . Parts Self-Destructed . | . . . Prevented . | . . . Kills | -11 -10 -10 ------- Run | Yrd Mat Min Combat Hostiles Destroyed 8 | 1 5 2 Guns 4 | 1 2 1 Cannons 3 | . 2 1 AOE 1 | . 1 . Classes Destroyed 6 | 2 3 1 Builder 3 | . 2 1 Tunneler 1 | 1 . . Recycler 1 | . . 1 Watcher 3 | . 3 . Swarmer 4 | . 4 . Grunt 4 | 1 1 2 Best Kill Streak 4 | 2 4 2 Combat Bots Only 2 | 1 2 2 Max Kills in Single Turn 1 | 1 1 1 Gunslinging . | . . . Exploded 1 | . 1 . Melee . | . . . Uniques/NPCs Destroyed . | . . . Combat | -11 -10 -10 -------- Run | Yrd Mat Min Hostile Shots Fired 88 | 7 49 32 Missed 23 | 3 17 3 Damage Taken 747 | 43 271 433 Core 258 | 12 70 176 Absorbed by Shields . | . . . Redirected to Shielding 23 | . . 23 Core Remaining (%) 95 | 95 . . Volleys Fired 46 | 7 28 11 Largest 2 | 1 2 2 Hottest 121 | 40 121 121 Shots Fired 60 | 7 40 13 Gun 33 | 7 18 8 Cannon 22 | . 17 5 Launcher . | . . . Special 5 | . 5 . Kinetic . | . . . Thermal 38 | 7 23 8 Explosive . | . . . Electromagnetic 22 | . 17 5 Robot Hit Streak 7 | 3 5 7 Robot Miss Streak 9 | 1 9 4 Penetration Max . | . . . Secondary Targets . | . . . Shots Hit Robots 43 | 6 25 12 Core Hits 37 | 3 23 11 Critical Kills . | . . . Critical Parts Destroyed . | . . . Critical Strikes . | . . . Melee Attacks . | . . . Impact . | . . . Slashing . | . . . Piercing . | . . . Sneak Attacks . | . . . Combat Hostiles . | . . . Follow-up Attacks . | . . . Damage Inflicted 772 | 76 489 207 Guns 357 | 76 192 89 Cannons 364 | . 246 118 Explosions 48 | . 48 . Melee . | . . . Ramming . | . . . Kinetic . | . . . Thermal 408 | 76 243 89 Explosive . | . . . Electromagnetic 364 | . 246 118 Impact . | . . . Slashing . | . . . Piercing . | . . . Highest Corruption 1 | . . 1 Average Corruption 1 | . . 1 Corruption Purged . | . . . Corruption Blocked . | . . . Overload Shots . | . . . Overflow Damage 15 | . 15 . Projectiles 15 | . 15 . Explosions . | . . . Melee . | . . . Knockbacks . | . . . Impact . | . . . Kinetic . | . . . Secondary . | . . . Self-Inflicted Damage . | . . . Shots . | . . . Rammed . | . . . Targets Rammed . | . . . Kicked . | . . . Crushed . | . . . Highest Temperature 312 | 1 312 176 Average Temperature 104 | 1 122 64 Received Heat Transfer 228 | 24 24 180 Effects 1 | . 1 . Energy Bleed 1 | . 1 . Siege Activations . | . . . Robots Corrupted . | . . . Combat Hostiles . | . . . Parts Fried 1 | . . 1 Impact Corruptions . | . . . Robots Melted . | . . . Combat Hostiles . | . . . Parts Melted 2 | . 2 . Heat Transferred 572 | 175 287 110 Parts Sabotaged . | . . . Parts Stolen . | . . . Parts Stripped . | . . . Power Chain Reactions 1 | . 1 . Alert | -11 -10 -10 ------- Run | Yrd Mat Min Peak Influence 86 | 25 86 61 Initial 21 | . 16 21 Average 36 | 3 46 20 Maximum Alert Level . | . . . Low Security (%) 100 | 100 100 100 Level 1 . | . . . Level 2 . | . . . Level 3 . | . . . Level 4 . | . . . Level 5 . | . . . High Security . | . . . Max Security . | . . . Squads Dispatched 1 | . 1 . Investigation 1 | . 1 . Extermination . | . . . Reinforcement . | . . . Assault . | . . . Garrison . | . . . Intercept . | . . . Searches Triggered . | . . . Construction Impeded . | . . . Haulers Reinforced . | . . . Active Scanning Responses . | . . . Cargo Convoy Interrupts . | . . . Stealth | -11 -10 -10 --------- Run | Yrd Mat Min Distress Signals 1 | . 1 . Communications Jammed . | . . . Distress Signals . | . . . Times Spotted 22 | 1 17 4 Peak Tracking Total 6 | 1 6 2 Tactical Retreats 1 | . 1 . Traps | -11 -10 -10 ------- Run | Yrd Mat Min Traps Triggered 1 | . 1 . Indirectly . | . . . Trap Hack Attempts . | . . . Triggered . | . . . Disarmed . | . . . Reprogrammed . | . . . Reused . | . . . Traps Extracted . | . . . Installed . | . . . Triggered . | . . . Machines | -11 -10 -10 ---------- Run | Yrd Mat Min Machines Disabled 2 | . 2 . Max in Single Turn 1 | . 1 . Machines Repaired . | . . . Machines Dismantled . | . . . Machines Sabotaged . | . . . Overloaded Fab Kills . | . . . Hacking | -11 -10 -10 --------- Run | Yrd Mat Min Machines Accessed 1 | . 1 . Terminals 1 | . 1 . Fabricators . | . . . Repair Stations . | . . . Recycling Units . | . . . Scanalyzers . | . . . Garrison Access . | . . . Total Hacks 2 | . 2 . Successful . | . . . Failed 2 | . 2 . Catastrophic . | . . . Database Lockouts . | . . . Manual 4 | . 4 . Terminals 2 | . 2 . Fabricators . | . . . Repair Stations . | . . . Recycling Units . | . . . Scanalyzers . | . . . Garrison Access . | . . . Terminal Hacks . | . . . Fabricator Hacks . | . . . Repair Station Hacks . | . . . Recycling Unit Hacks . | . . . Scanalyzer . | . . . Garrison Access Hacks . | . . . Unauthorized Hacks . | . . . Terminals . | . . . Fabricators . | . . . Repair Stations . | . . . Recycling Units . | . . . Scanalyzers . | . . . Garrison Access . | . . . Data Cores Recovered . | . . . Used . | . . . Hacking Detections 1 | . 1 . Full Trace Events . | . . . Feedback Events . | . . . Feedback Blocked . | . . . Robot Schematics Acquired . | . . . Robots Built . | . . . Authchips . | . . . Time . | . . . Total Robot Build Rating . | . . . Part Schematics Acquired . | . . . Parts Built . | . . . Authchips . | . . . Time . | . . . Total Part Build Rating . | . . . Parts Repaired . | . . . Time . | . . . Parts Recycled . | . . . Recycled Matter . | . . . Retrieved Matter . | . . . Retrieved Components . | . . . Parts Scanalyzed . | . . . Part Schematics Acquired . | . . . Parts Damaged . | . . . Bothacking | -11 -10 -10 ------------ Run | Yrd Mat Min Used RIF Installer . | . . . Robots Hacked . | . . . Non-combat . | . . . Combat . | . . . Robot Hacks Applied . | . . . Relay Couplers Released . | . . . Fabnet Peak Effective % . | . . . Robots Rewired . | . . . Allies Hacked . | . . . Hacks Repelled . | . . . Allies | -11 -10 -10 -------- Run | Yrd Mat Min Total Allies . | . . . Largest Group . | . . . Highest-Rated Group . | . . . Highest-Rated Ally . | . . . Total Orders . | . . . Ally Attacks . | . . . Total Damage . | . . . Kills . | . . . Allies Corrupted . | . . . Allies Melted . | . . . Intel | -11 -10 -10 ------- Run | Yrd Mat Min Robot Analysis Total . | . . . Derelict Logs Recovered 1 | . . 1 Drone Launches . | . . . Drone Recoveries . | . . . Exploration | -11 -10 -10 ------------- Run | Yrd Mat Min Turns Passed 2265 | 93 1402 770 Spaces Moved 683 | 103 271 309 Core 197 | 55 76 66 Treads . | . . . Legs . | . . . Wheels 441 | 48 173 220 Hover . | . . . Flight 45 | . 22 23 Fastest Speed 50 | 50 80 50 Average Speed 207 | 63 388 95 Slowest Speed 1600 | 80 1600 200 Overloaded Moves . | . . . Propulsion Burnouts . | . . . Robots Hopped . | . . . Cave-ins Triggered . | . . . Exploration Rate (%) 34 | 6 37 60 Regions Visited 2 Branch Regions 1 Pre-discovered Areas . | . . . Known Exits Taken . | . . . Unknown Exits Taken 2 | 1 1 . Scrap Searched 1 | . . 1 Spaces Dug . | . . . Terrain Destroyed 5 | . 5 . Melee . | . . . Projectile . | . . . AOE 5 | . 5 . Terrain Rammed . | . . . Walls Destroyed . | . . . Machines Disabled . | . . . Actions | -11 -10 -10 --------- Run | Yrd Mat Min Total 1476 | 123 582 771 Wait 677 | 1 245 431 Move 681 | 102 270 309 Hop . | . . . Pick Up 26 | 6 14 6 Fast Attach 1 | . 1 . Attach 19 | 5 8 6 Detach 6 | . 4 2 Swap 7 | . 4 3 Drop 13 | 2 8 3 Fire 46 | 7 28 11 Melee . | . . . Ram . | . . . Kick . | . . . Crush . | . . . Escape Stasis . | . . . Rewire . | . . . Trap . | . . . Miscellaneous . | . . . Route ------- -11/Scrapyard -10/Materials -10/Mines (discovered 2 exits: [*Mat x2]) History --------- Turn | Location | Event 2 | -11/Scrapyard | Met Revision 17 64 | -11/Scrapyard | Discovered new exit (range 8) 94 | -11/Scrapyard | Entered Materials 315 | -10/Materials | Build established: Mutant 836 | -10/Materials | Discovered new exit (range 16) 1496 | -10/Materials | Entered Mines 1550 | -10/Mines | Discovered new exit (range 5) 1552 | -10/Mines | Learned location of 2 exits from Materials 1692 | -10/Mines | Discovered new exit (range 6) 1717 | -10/Mines | Build established: Scavenger-Mutant 2207 | -10/Mines | Found a damaged Exp. Sensor Array with a note attached 2208 | -10/Mines | Found Prototype Device 2256 | -10/Mines | Core integrity fell below 50% 2264 | -10/Mines | Core integrity fell below 20% 2266 | -10/Mines | Destroyed by Y-45 Defender with Beam Rifle Last Messages --------------- defend their interests would be to start expanding in this direction." Com. Wheel destroyed. A damaged part is partially visible under some rubble. There's a note attached: "Everyone keeps telling us we should avoid high-traffic areas because that's where patrols are more likely to show up, but that doesn't do us much good if we can't spot those areas until they're on top of us... With this we can! Deliver it to Megawrench for repairs then we'll never be afraid of an ambush while sneaking around Materials again, ha." K-01 Serf collects debris. Acquired Prototype Device. K-01 Serf collects debris. Integrated Corrupted Lgt. Nuclear Core (+1). Complication: System interference. Spread Laser temporarily disabled. Critical hit (Burn: +37). Lgt. Nuclear Core destroyed. Spread Laser destroyed. Wheel destroyed. Sensor Array destroyed. Map ----- +----------------------------------------------------+ | #?????????????# #?????????????????? | | #?????????????## #?????????????????? | | #####?????????????###### ##?????????????????? | | ##??????????????????????#### ####### #???????? | | ???????????????????######??# #??????????? | | ??????????????????## ##?# ##### ##???????????? | | ??????????????????# ### ##?????????????????? | | ??????????????????# #?????????????????? | | ???????????????????# ##????????????????? | | ???????????????????## ###??????????????? | | ????????????????????# #??????????????? | | ????????????#??????## #?????????????? | | ??????????????????## ## ???????? | | ???????????####??## ##### ##???????? | | ??????????## #### ##???# ##????????? | | ??????????# ## #????## ##?????????? | | ??????????# #??????# #??????????? | | ??????????## #???????# #??????????? | | ???????????## #????#???# #?????????? | | ????????????## #????????? ?????????? | | ?????????????# k ##???????? ??????????? | | ?????????????# ##???????? ###??????????? | | ????????????## ####??????###????????????? | | ?????#?????## Y ##????????????????????? | | ???????????# Y ##???????????????????? | | ???????????# ## @ ##??????????????????? | | ???????????## ### #### ###????????????????? | | ????????????#####?####??## #????????????????? | | ????????#????????????????# ##??#?????????????? | | ??????????????????#??????## ##?????????????????? | | ??????????????????????????#####??????????????????? | | ??????????????#??????????#???????????????????????? | | ?????????????????????????????????????????????????? | | | | | | | | | | | | | | | | | | | | | | | | | | | | | | | | | | | +----------------------------------------------------+ Best States ------------- Heat Dissipation 25 Energy Generation 14 Energy Capacity 500 Matter Stores 300 Matter Capacity 300 Sight Range 18 Robot Scan Range 14 Terrain Scan Range 14 Terrain Scan Density 10 ECM Strength 1 Weapon Shielding 33 Evasion (%) 50 Item Schematics ----------------- None Robot Schematics ------------------ None Fabricated ------------ Nothing Alien Tech Used ----------------- None Achievements -------------- None Challenges ------------ None Game ------ Seed NodeUltimateArachnoskeleton Manual? 0 Play Time 00:29:06 Cumulative 0.9 hours Start 2025.04.29 @ 10:39:09 End 2025.04.29 @ 11:07:42 Sessions 1 Manual Loads 0 Difficulty Rogue Special Mode None Game No. 3 Rogue 3 Adventurer 0 Explorer 0 Win Type - Total 0 Types 0/0/0/0/0/0/0/0/0 Lore% 0 Gallery% 2 Achievement% 2 Wizard Run 0 Options --------- Layout 0 ASCII 0 Keyboard 0 Movement Mouse Keybinds 0 Fullscreen 1 Font 18/SmallcapsGlow Map View 76x50 Zoom Use 0% Tactical HUD 0 Map Filters NONE Filters NONE Steam 1 RUN: 293a89fc-1b8d-48f5-af9d-6bc4145ebc8c